Cogmind - Beta 16 @@@ ROGUE MODE // 2025.10.30 @ 00:19:49 Player: Scringis Result: Destroyed by G-67 Veteran with Plasma Rifle Performance ------------- Evolutions (6) 3000 Regions Visited (8) 1600 Robots Destroyed (96) 480 Value Destroyed (4198) 4198 Prototype IDs (13) 260 Alien Tech Used (0) 0 Bonus (1071) 1071 TOTAL SCORE: 10609 Bonus ------- High Alert Combat Kills 113 Follower Combat Kills 158 Registered with UFD 300 Met Optimus in HQ 500 Cogmind --------- Core Integrity 0/1150 Matter 209/300 Energy 97/100 System Corruption 15% Temperature Cool (0) Movement Core (50) Location -4/Factory Parts ------- > --- POWER (2) -------- (None) > --- PROPULSION (4) --- (None) > --- UTILITY (7) ------ Improved Armor Integrity Analyzer > --- WEAPON (6) ------- (None) > --- INVENTORY (5) ---- Improved Fusion Compressor Advanced Cryofiber Web Improved Armor Integrity Analyzer Improved Transmission Jammer Improved Force Field Peak State ------------ > --- POWER ------------ Neutrino Core Micro Fission Core > --- PROPULSION ------- Flexi-carbon Leg Thunder Leg Myomer Leg Myomer Leg > --- UTILITY ---------- Advanced Cooling System Large Storage Unit Enhanced Optical Array Advanced Targeting Computer Core Analyzer Advanced ECM Suite Cloaking Device > --- WEAPON ----------- Heavy Gatling Laser Phase Gun Dispersion Rifle HERF Cannon Autogun KE Penetrator > --- INVENTORY -------- Micro Fission Core Improved Fusion Compressor Flexi-carbon Leg Flexi-carbon Leg Advanced Cryofiber Web Advanced Heat Sink Medium Matter Pod Improved Signal Interpreter Improved Armor Integrity Analyzer Improved Armor Integrity Analyzer Improved Transmission Jammer Improved Reaction Control System Improved Force Field Matter Neutralizer Plasma Cutter [Rating: 109] Favorites ----------- Power Heavy Ion Engine Engine Heavy Ion Engine Power Core Light Nuclear Core Reactor Light Antimatter Reactor Propulsion Flexi-carbon Leg Treads Light Treads Leg Flexi-carbon Leg Flight Unit Improved Cesium-ion Thruster Utility Large Storage Unit Device Cloaking Device Storage Large Storage Unit Processor Core Analyzer Hackware Hacking Suite Protection Hardened Light Armor Plating Weapon Improved Assault Rifle Energy Gun Phase Gun Energy Cannon Compact Ion Cannon Ballistic Gun Improved Assault Rifle Ballistic Cannon Magnetic Acceleration Cannon Launcher Guided EMP Blaster Special Weapon Plasma Cutter Build | -11 -10 -9 -9 -9 -9 -6 -5 -4 ------- Run | Yrd Mat Mat Sto Rec Scr Fac Fac Fac Slots Evolved 12 | . . 2 . . . 6 2 2 Power 1 | . . . . . . 1 . . Propulsion 2 | . . . . . . 2 . . Utility 5 | . . . . . . 2 1 2 Weapon 4 | . . 2 . . . 1 1 . Parts Attached 101 | 6 . 2 10 1 4 19 11 48 Power 19 | 1 . . 2 . . 3 1 12 Engine 4 | 1 . . 2 . . . . 1 Core 12 | . . . . . . 3 1 8 Reactor 3 | . . . . . . . . 3 Propulsion 23 | 2 . . . . . 9 2 10 Treads 2 | 2 . . . . . . . . Leg 20 | . . . . . . 8 2 10 Wheel . | . . . . . . . . . Hover . | . . . . . . . . . Flight 1 | . . . . . . 1 . . Utility 24 | 1 . . 2 . 1 4 3 13 Device 12 | . . . . . . 3 2 7 Storage 2 | 1 . . . . 1 . . . Processor 5 | . . . . . . 1 1 3 Hackware 1 | . . . . . . . . 1 Protection 4 | . . . 2 . . . . 2 Artifact . | . . . . . . . . . Weapon 35 | 2 . 2 6 1 3 3 5 13 Energy Gun 9 | 1 . . 1 . . . . 7 Energy Cannon 6 | . . . . . . 2 2 2 Ballistic Gun 12 | 1 . . 3 1 1 1 2 3 Ballistic Cannon 5 | . . 2 . . 1 . 1 1 Launcher 1 | . . . 1 . . . . . Special Weapon 2 | . . . 1 . 1 . . . Impact Weapon . | . . . . . . . . . Slashing Weapon . | . . . . . . . . . Piercing Weapon . | . . . . . . . . . Special Melee Weapon . | . . . . . . . . . Unidentified Prototypes 11 | . . . 5 . 1 2 1 2 Parts Lost 49 | . . . 2 . . 3 . 44 Power 10 | . . . . . . 1 . 9 Propulsion 11 | . . . . . . . . 11 Utility 11 | . . . 1 . . 1 . 9 Weapon 17 | . . . 1 . . 1 . 15 Highest Loss Streak 8 | . . . 1 . . 1 . 8 To Critical Strikes . | . . . . . . . . . Average Backups 9 | 1 2 2 3 6 7 9 13 12 Power . | . 1 1 1 1 . . . 1 Propulsion 1 | . . . . . . . 5 2 Utility 4 | . . . . 1 3 4 6 6 Weapon 1 | 1 1 1 1 4 2 1 . . Tool/Special . | . . . . . . . . . Unused Backups 25 | . . . . . 1 1 2 21 Power 4 | . . . . . . . . 4 Propulsion 3 | . . . . . . . . 3 Utility 12 | . . . . . 1 . 1 10 Weapon 4 | . . . . . . . 1 3 Tool/Special 2 | . . . . . . 1 . 1 Average Slot Usage (%) 91 | . 85 85 94 92 99 91 93 83 Engine 5 | . 14 11 11 11 11 3 . . Core 4 | . . . . . . 7 11 6 Treads 10 | . 28 22 22 22 22 1 . . Leg 10 | . . . . . . 21 23 18 Device 6 | . . . . . . 11 12 11 Storage 7 | . 14 11 11 11 11 6 5 5 Processor 6 | . . . . . . 5 7 15 Protection 4 | . . . 8 11 11 1 . . Energy Gun 3 | . 14 11 4 . . . . 8 Energy Cannon 4 | . . . . . . 7 13 5 Ballistic Gun 18 | . 14 11 25 26 32 18 12 6 Ballistic Cannon 3 | . . 19 6 . 6 3 2 . Special Weapon 2 | . . . 6 11 4 . . . Peak Build Rating 109 | 6 6 8 27 23 28 65 86 109 Average Rating 52 | 4 6 7 15 21 24 55 77 86 On Entrance 24 | . 6 6 8 20 23 25 61 67 Avg Prop Armor Cover (%) 3 | . . . . . . . . 3 Naked Turns . | . . . . . . . . . Heaviest Build 88 | 12 12 18 29 29 50 62 74 88 Greatest Support 93 | 40 40 40 40 40 40 80 86 93 Greatest Overweight (x) 3 | . . . . . 1 1 . 3 Average Overweight (x) . | . . . . . . . . . Largest Inventory Capacity 15 | 8 8 8 8 8 15 15 15 15 Average Capacity 12 | 7 8 8 8 8 11 15 15 14 Most Carried 15 | 4 4 4 8 7 8 15 15 15 Average Carried 9 | 2 2 2 3 6 7 9 13 12 Final Capacity 15 | 8 8 8 8 8 15 15 15 5 Final Carried 15 | 2 4 2 7 6 8 12 15 5 Class Distribution -------------------- 31% | Tank 17% | Scavenger-Executioner 16% | Gunner 8% | Commander-Tank 8% | Scavenger-Gunner 7% | Executioner 5% | Mutant Dominant Class ---------------- Mutant | -10/Materials Gunner | -9/Materials Commander-Tank | -9/Storage Commander-Tank | -9/Recycling Tank | -9/Scraptown Gunner | -6/Factory Scavenger-Executioner | -5/Factory Scavenger-Executioner | -4/Factory Resources | -11 -10 -9 -9 -9 -9 -6 -5 -4 ----------- Run | Yrd Mat Mat Sto Rec Scr Fac Fac Fac Matter Collected 3124 | 188 49 55 320 76 . 786 25 1625 Remotely . | . . . . . . . . . Salvage Created 4492 | . 49 23 607 . . 1111 80 2622 Parts 236 | . 9 5 30 . . 56 5 131 Haulers Intercepted 5 | . . . 4 . . 1 . . Recyclers Shooed 2 | . . . . . . 1 . 1 Parts Field Recycled . | . . . . . . . . . Retrieved Matter . | . . . . . . . . . Parts Self-Destructed . | . . . . . . . . . Prevented . | . . . . . . . . . Parts Restored . | . . . . . . . . . Kills | -11 -10 -9 -9 -9 -9 -6 -5 -4 ------- Run | Yrd Mat Mat Sto Rec Scr Fac Fac Fac Combat Hostiles Destroyed 77 | . . . 10 . . 17 2 48 Guns 44 | . . . 5 . . 12 . 27 Cannons 23 | . . . 2 . . 5 1 15 AOE 4 | . . . 3 . . . 1 . Classes Destroyed 13 | . 2 . 6 . . 3 . 2 Worker 2 | . . . 1 . . . . 1 Builder 4 | . . . . . . 2 . 2 Hauler 5 | . . . 4 . . 1 . . Recycler 3 | . . . 1 . . 2 . . Operator 3 | . 1 2 . . . . . . Watcher 2 | . 2 . . . . . . . Swarmer 25 | . . . 3 . . 7 . 15 Grunt 18 | . . . 5 . . 3 . 10 Brawler 1 | . . . . . . . . 1 Sentry 8 | . . . 2 . . 2 . 4 Specialist 4 | . . . . . . . . 4 Hunter 6 | . . . . . . 4 . 2 Programmer 15 | . . . . . . 1 2 12 Best Kill Streak 8 | . 1 1 8 . . 7 2 4 Combat Bots Only 6 | . . . 6 . . 4 2 4 Max Kills in Single Turn 3 | . 1 1 3 . . 2 1 3 Gunslinging 1 | . . . . . . . . 1 Exploded 3 | . . . 3 . . . 1 . Melee . | . . . . . . . . . Uniques/NPCs Destroyed . | . . . . . . . . . Combat | -11 -10 -9 -9 -9 -9 -6 -5 -4 -------- Run | Yrd Mat Mat Sto Rec Scr Fac Fac Fac Hostile Shots Fired 816 | . . . 31 2 . 130 6 647 Missed 312 | . . . 8 . . 39 2 263 Hits 504 | . . . 23 2 . 91 4 384 Melee 10 | . . . . . . . . 10 Projectile 494 | . . . 23 2 . 91 4 374 Critical Strikes 17 | . . . . . . 1 . 16 Part Disruptions 10 | . . . . . . . 1 9 Damage Taken 8673 | . . 198 262 28 . 1513 168 6504 Core 1386 | . . . 18 . . 175 21 1172 Absorbed by Shields . | . . . . . . . . . Core Remaining (%) 94 | 100 100 . . . 95 79 97 . Volleys Fired 241 | . 4 4 25 2 . 53 4 149 Largest 6 | . 2 4 4 3 . 5 6 5 Hottest 388 | . 60 120 120 61 . 249 388 379 Shots Fired 710 | . 8 16 90 5 . 197 24 370 Gun 513 | . 8 8 72 5 . 143 8 269 Cannon 196 | . . 8 17 . . 54 16 101 Launcher . | . . . . . . . . . Special 1 | . . . 1 . . . . . Kinetic 405 | . 4 12 67 5 . 173 12 132 Thermal 253 | . . . 1 . . 24 12 216 Explosive . | . . . . . . . . . Electromagnetic 52 | . 4 4 22 . . . . 22 Robot Hit Streak 12 | . 2 1 9 6 . 12 2 11 Robot Miss Streak 9 | . 1 7 4 1 . 9 4 6 Penetration Max 1 | . . . . . . . . 1 Secondary Targets 4 | . . . . . . . . 4 Max Gunslinging Chain 1 | . . . . . . . . 1 Shots Hit Robots 376 | . 4 4 46 4 . 97 6 215 Core Hits 182 | . 4 3 19 1 . 57 4 94 Critical Kills 9 | . . . 2 . . . . 7 Critical Parts Destroyed 4 | . . . . . . 1 . 3 Critical Strikes 20 | . . . 3 . . 2 1 14 Burn 4 | . . . . . . . . 4 Meltdown 4 | . . . . . . . . 4 Destroy 9 | . . . 2 . . 1 . 6 Blast 2 | . . . . . . 1 1 . Corrupt 1 | . . . 1 . . . . . Melee Attacks . | . . . . . . . . . Impact . | . . . . . . . . . Slashing . | . . . . . . . . . Piercing . | . . . . . . . . . Sneak Attacks . | . . . . . . . . . Combat Hostiles . | . . . . . . . . . Follow-up Attacks . | . . . . . . . . . Damage Inflicted 9316 | . 59 64 812 99 . 1746 448 6088 Guns 5888 | . 59 10 550 79 . 1162 54 3974 Cannons 3143 | . . 54 110 . . 584 284 2111 Explosions 243 | . . . 137 . . . 106 . Melee . | . . . . . . . . . Ramming 31 | . . . 4 20 . . 4 3 Kinetic 3560 | . 23 64 506 79 . 1374 140 1374 Thermal 5199 | . . . 148 . . 372 296 4383 Explosive . | . . . . . . . . . Electromagnetic 526 | . 36 . 154 . . . 8 328 Impact . | . . . . . . . . . Slashing . | . . . . . . . . . Piercing . | . . . . . . . . . Highest Corruption 15 | . . . . . . . . 15 Average Corruption 10 | . . . . . . . . 10 Corruption Purged . | . . . . . . . . . Corruption Blocked . | . . . . . . . . . Effects 91 | . . . . . . . . 91 Message Errors 19 | . . . . . . . . 19 Matter Fused 22 | . . . . . . . . 22 Heat Flow Errors 17 | . . . . . . . . 17 Energy Discharges 6 | . . . . . . . . 6 Parts Fused 2 | . . . . . . . . 2 Data Loss (minor) 11 | . . . . . . . . 11 Data Loss (major) 6 | . . . . . . . . 6 Misfires 1 | . . . . . . . . 1 Alerts 3 | . . . . . . . . 3 Misdirections 1 | . . . . . . . . 1 Weapon Failures 3 | . . . . . . . . 3 Overload Shots . | . . . . . . . . . Overflow Damage 69 | . . . . . . . 44 25 Projectiles 69 | . . . . . . . 44 25 Explosions . | . . . . . . . . . Melee . | . . . . . . . . . Knockbacks 1 | . . . . . . . . 1 Impact . | . . . . . . . . . Kinetic 1 | . . . . . . . . 1 Secondary . | . . . . . . . . . Self-Inflicted Damage 287 | . . 198 . . . . 89 . Shots 4 | . . 2 . . . . 2 . Rammed 6 | . . . 3 3 . . . . Targets Rammed 11 | . . . 4 3 . . 1 3 Kicked 4 | . . . . . . . 1 3 Crushed 1 | . . . 1 . . . . . Highest Temperature 815 | . . 102 228 13 . 479 815 512 Average Temperature 154 | . . 49 88 6 . 147 344 159 Received Heat Transfer 878 | . . . 75 9 . 138 . 656 Effects 34 | . . . 2 . . 2 15 15 Shutdowns 13 | . . . . . . 1 5 7 Energy Bleed 5 | . . . . . . 1 2 2 Interference 6 | . . . 2 . . . . 4 Short Circuit 4 | . . . . . . . 3 1 Damage (minor) 3 | . . . . . . . 2 1 Damage (major) 3 | . . . . . . . 3 . Siege Activations . | . . . . . . . . . Martial Activations . | . . . . . . . . . Shielding Activations . | . . . . . . . . . Robots Disrupted . | . . . . . . . . . Combat Hostiles . | . . . . . . . . . Robots Corrupted . | . . . . . . . . . Combat Hostiles . | . . . . . . . . . Parts Fried . | . . . . . . . . . Impact Corruptions . | . . . . . . . . . Robots Melted 6 | . . . . . . . . 6 Combat Hostiles 6 | . . . . . . . . 6 Parts Melted 27 | . . . . . . 1 2 24 Heat Transferred 6426 | . . . 137 . . 522 174 5593 Parts Sabotaged . | . . . . . . . . . Parts Stolen . | . . . . . . . . . Parts Stripped . | . . . . . . . . . Power Chain Reactions 2 | . . . 1 . . . 1 . Alert | -11 -10 -9 -9 -9 -9 -6 -5 -4 ------- Run | Yrd Mat Mat Sto Rec Scr Fac Fac Fac Maximum Alert Level 2 | . . . 1 . . . . 2 Low Security (%) 75 | 100 100 100 75 100 . 100 100 53 Level 1 19 | . . . 24 . . . . 34 Level 2 5 | . . . . . . . . 12 Level 3 . | . . . . . . . . . Level 4 . | . . . . . . . . . Level 5 . | . . . . . . . . . High Security . | . . . . . . . . . Max Security . | . . . . . . . . . Peak Influence 471 | . 7 64 228 81 . 144 124 471 Initial 81 | . . . 11 81 . . 60 49 Average 137 | . 2 26 152 18 . 78 17 219 Influence Increases 2858 | . 26 69 608 26 . 521 164 1444 Destroy 0b10 Robot/C 1660 | . . . 300 20 . 340 40 960 Destroy 0b10 Robot/NC 110 | . 15 10 45 . . 25 . 15 Destroy Leader 376 | . 4 . 80 . . 82 10 200 Allied During Kill 73 | . . . 64 6 . 3 . . Successful Hack 37 | . 7 . 16 . . . . 14 Disable Machine 240 | . . 30 75 . . 15 90 30 Destroy Structure 182 | . . 29 13 . . 26 24 90 Lose Combat Pursuer 180 | . . . 15 . . 30 . 135 Influence Decreases 2471 | . 26 40 427 236 . 397 188 1157 Entered New Map 262 | . . . 18 129 . . 64 51 Time Decay 1619 | . 26 40 309 107 . 347 124 666 Lost Part 490 | . . . 20 . . 30 . 440 Lost Ally 100 | . . . 80 . . 20 . . Squads Dispatched 28 | . . 1 5 . . 3 2 17 Investigation 5 | . . . 2 . . 1 . 2 Extermination 8 | . . . . . . 1 1 6 Reinforcement 14 | . . 1 3 . . 1 1 8 Assault 1 | . . . . . . . . 1 Garrison . | . . . . . . . . . Intercept . | . . . . . . . . . Searches Triggered . | . . . . . . . . . Construction Impeded 2 | . . . . . . 1 . 1 Haulers Reinforced . | . . . . . . . . . Active Scanning Responses . | . . . . . . . . . Cargo Convoy Interrupts . | . . . . . . . . . Stealth | -11 -10 -9 -9 -9 -9 -6 -5 -4 --------- Run | Yrd Mat Mat Sto Rec Scr Fac Fac Fac Distress Signals 7 | . . . 2 . . 1 . 4 Communications Jammed . | . . . . . . . . . Distress Signals . | . . . . . . . . . Times Spotted 141 | . 2 3 23 1 . 19 4 89 Peak Tracking Total 9 | . 1 2 7 1 . 4 2 9 Tactical Retreats 12 | . . . 1 . . 1 . 10 ECM-based Alert Blocks 5 | . . . . . . . . 5 Traps | -11 -10 -9 -9 -9 -9 -6 -5 -4 ------- Run | Yrd Mat Mat Sto Rec Scr Fac Fac Fac Traps Triggered 4 | . . . . . . . . 4 Indirectly . | . . . . . . . . . Trap Hack Attempts . | . . . . . . . . . Triggered . | . . . . . . . . . Disarmed . | . . . . . . . . . Reprogrammed . | . . . . . . . . . Reused . | . . . . . . . . . Traps Extracted . | . . . . . . . . . Installed . | . . . . . . . . . Triggered . | . . . . . . . . . Machines | -11 -10 -9 -9 -9 -9 -6 -5 -4 ---------- Run | Yrd Mat Mat Sto Rec Scr Fac Fac Fac Machines Disabled 16 | . . 2 5 . . 1 6 2 Max in Single Turn 4 | . . 2 1 . . 1 4 1 Garrison Access 1 | . . . . . . . 1 . Machines Repaired . | . . . . . . . . . Machines Dismantled 4 | . . . 4 . . . . . Machines Sabotaged . | . . . . . . . . . Overloaded Fab Kills . | . . . . . . . . . Hacking | -11 -10 -9 -9 -9 -9 -6 -5 -4 --------- Run | Yrd Mat Mat Sto Rec Scr Fac Fac Fac Machines Accessed 17 | . 1 . 6 2 3 2 1 2 Terminals 9 | . 1 . 6 1 . . . 1 Fabricators 1 | . . . . . . 1 . . Repair Stations . | . . . . . . . . . Recycling Units 2 | . . . . 1 . 1 . . Scanalyzers 1 | . . . . . . . . 1 Garrison Access 1 | . . . . . . . 1 . Total Hacks 38 | . 2 . 13 2 11 4 1 5 Successful 23 | . 1 . 5 2 11 1 1 2 Failed 14 | . 1 . 8 . . 3 . 2 Catastrophic 2 | . . . 1 . . . . 1 Database Lockouts 1 | . . . . . . . . 1 Manual . | . . . . . . . . . Terminals 18 | . 2 . 13 1 . . . 2 Fabricators 3 | . . . . . . 3 . . Repair Stations . | . . . . . . . . . Recycling Units 2 | . . . . 1 . 1 . . Scanalyzers 3 | . . . . . . . . 3 Garrison Access 1 | . . . . . . . 1 . Terminal Hacks 19 | . 1 . 5 1 11 . . 1 Record 10 | . . . . . 10 . . . Robot Analysis 1 | . . . . . 1 . . . Prototype ID Bank 1 | . . . . 1 . . . . Open Door 4 | . . . 4 . . . . . Registered Components 2 | . 1 . . . . . . 1 Zone Layout 1 | . . . 1 . . . . . Fabricator Hacks . | . . . . . . . . . Repair Station Hacks . | . . . . . . . . . Recycling Unit Hacks 2 | . . . . 1 . 1 . . Report Inventory 2 | . . . . 1 . 1 . . Scanalyzer 1 | . . . . . . . . 1 Retrieve Study 1 | . . . . . . . . 1 Garrison Access Hacks 1 | . . . . . . . 1 . Seal Access 1 | . . . . . . . 1 . Unauthorized Hacks . | . . . . . . . . . Terminals . | . . . . . . . . . Fabricators . | . . . . . . . . . Repair Stations . | . . . . . . . . . Recycling Units . | . . . . . . . . . Scanalyzers . | . . . . . . . . . Garrison Access . | . . . . . . . . . Data Cores Recovered 1 | . 1 . . . . . . . Used 1 | . 1 . . . . . . . Hacking Detections 8 | . 1 . 2 1 . 2 . 2 Full Trace Events 4 | . . . 2 . . 1 . 1 Feedback Events . | . . . . . . . . . Feedback Blocked . | . . . . . . . . . Robot Schematics Acquired . | . . . . . . . . . Robots Built . | . . . . . . . . . Authchips . | . . . . . . . . . Time . | . . . . . . . . . Total Robot Build Rating . | . . . . . . . . . Part Schematics Acquired . | . . . . . . . . . Parts Built . | . . . . . . . . . Authchips . | . . . . . . . . . Time . | . . . . . . . . . Total Part Build Rating . | . . . . . . . . . Part Studies Acquired 1 | . . . . . . . . 1 Parts Repaired . | . . . . . . . . . Time . | . . . . . . . . . Parts Recycled . | . . . . . . . . . Recycled Matter . | . . . . . . . . . Retrieved Matter . | . . . . . . . . . Retrieved Components . | . . . . . . . . . Parts Scanalyzed . | . . . . . . . . . Part Schematics Acquired . | . . . . . . . . . Parts Damaged . | . . . . . . . . . Bothacking | -11 -10 -9 -9 -9 -9 -6 -5 -4 ------------ Run | Yrd Mat Mat Sto Rec Scr Fac Fac Fac Used RIF Installer . | . . . . . . . . . Robots Hacked . | . . . . . . . . . Non-combat . | . . . . . . . . . Combat . | . . . . . . . . . Robot Hacks Applied . | . . . . . . . . . Relay Couplers Released . | . . . . . . . . . Fabnet Peak Effective % . | . . . . . . . . . Robots Rewired . | . . . . . . . . . Allies Hacked . | . . . . . . . . . Hacks Repelled . | . . . . . . . . . Allies | -11 -10 -9 -9 -9 -9 -6 -5 -4 -------- Run | Yrd Mat Mat Sto Rec Scr Fac Fac Fac Total Allies 10 | . . . 10 . . . . . Largest Group 10 | . . . 10 6 3 3 . . Highest-Rated Group 88 | . . . 88 56 24 24 . . Highest-Rated Ally 16 | . . . 16 16 8 8 . . Total Orders . | . . . . . . . . . Ally Attacks 66 | . . . 61 4 . 1 . . Total Damage 631 | . . . 578 42 . 11 . . Kills 9 | . . . 8 1 . . . . Allies Corrupted . | . . . . . . . . . Allies Melted 1 | . . . . 1 . . . . Intel | -11 -10 -9 -9 -9 -9 -6 -5 -4 ------- Run | Yrd Mat Mat Sto Rec Scr Fac Fac Fac Active Infowar (turns) 4674 | . . . . . . 863 888 2923 Optics 2665 | . . . . . . . . 2665 Sensors 1155 | . . . . . . 831 324 . Cloaking 2659 | . . . . . . 32 888 1739 ECM 398 | . . . . . . . 3 395 Robot Analysis Total 1 | . . . . . 1 . . . Derelict Logs Recovered . | . . . . . . . . . Drone Launches . | . . . . . . . . . Drone Recoveries . | . . . . . . . . . Exploration | -11 -10 -9 -9 -9 -9 -6 -5 -4 ------------- Run | Yrd Mat Mat Sto Rec Scr Fac Fac Fac Turns Passed 9008 | 64 133 134 722 504 2601 906 888 3056 Spaces Moved 4808 | 35 75 74 302 304 1324 474 561 1659 Core 12 | 4 . . . . . . . 8 Treads 2140 | 31 75 74 302 304 1324 30 . . Legs 2656 | . . . . . . 444 561 1651 Wheels . | . . . . . . . . . Hover . | . . . . . . . . . Flight . | . . . . . . . . . Fastest Speed 50 | 50 160 160 160 160 160 120 120 50 Average Speed 153 | 147 160 160 160 160 194 132 120 135 Slowest Speed 330 | 160 160 160 160 160 240 240 120 330 Overloaded Moves . | . . . . . . . . . Propulsion Burnouts . | . . . . . . . . . Robots Hopped . | . . . . . . . . . Potential Cave-ins . | . . . . . . . . . Cave-ins Triggered . | . . . . . . . . . Exploration Rate (%) 35 | 4 17 14 68 66 85 12 19 35 Regions Visited 8 Branch Regions 3 Pre-discovered Areas 1 | . . . 1 . . . . . Known Exits Taken 1 | . . . . . . . 1 . Unknown Exits Taken 7 | 1 1 1 1 1 1 1 . . Scrap Searched 2 | . . . . . 2 . . . Spaces Dug . | . . . . . . . . . Terrain Destroyed 125 | . . 37 6 . . 23 13 46 Melee . | . . . . . . . . . Projectile 74 | . . . 1 . . 23 4 46 AOE 51 | . . 37 5 . . . 9 . Terrain Rammed . | . . . . . . . . . Walls Destroyed . | . . . . . . . . . Machines Disabled . | . . . . . . . . . Actions | -11 -10 -9 -9 -9 -9 -6 -5 -4 --------- Run | Yrd Mat Mat Sto Rec Scr Fac Fac Fac Total 5879 | 48 80 80 419 314 1349 624 766 2199 Wait 450 | . . 1 24 4 . 42 164 215 Move 4800 | 34 74 73 301 303 1323 473 560 1659 Hop . | . . . . . . . . . Pick Up 140 | 8 2 . 12 . 12 24 13 69 Fast Attach . | . . . . . . . . . Attach 82 | 6 . 2 7 1 3 10 5 48 Detach 10 | . . . 2 . . . 2 6 Swap 41 | . . . 7 . 1 10 6 17 Drop 71 | . . . 5 . 10 12 11 33 Fire 241 | . 4 4 25 2 . 53 4 149 Melee . | . . . . . . . . . Ram . | . . . . . . . . . Kick 4 | . . . . . . . 1 3 Crush 7 | . . . 4 3 . . . . Escape Stasis . | . . . . . . . . . Rewire . | . . . . . . . . . Trap . | . . . . . . . . . Miscellaneous 33 | . . . 32 1 . . . . Route ------- -11/Scrapyard -10/Materials -9/Materials -9/Storage -9/Recycling -9/Scraptown (discovered 2 exits: *Fac x2) -6/Factory (discovered 2 exits: *Fac / [*Low]) -5/Factory -4/Factory (discovered 1 exit: [*Res]) History --------- Turn | Location | Event 3 | -11/Scrapyard | Discovered new exit (range 16) 65 | -11/Scrapyard | Entered Materials 161 | -10/Materials | Discovered new exit (range 8) 198 | -10/Materials | Entered another Materials area 198 | -9/Materials | Evolved 2 slots: Weapon x2 299 | -9/Materials | Discovered new exit (range 16) 332 | -9/Materials | Entered Storage 672 | -9/Storage | Assisted by bots powering up and referring to "LRC-V3" 790 | -9/Storage | Learned location of Armory (-3) 966 | -9/Storage | Met 01-MTF 1048 | -9/Storage | Discovered new exit (range 3) 1054 | -9/Storage | Entered Recycling 1054 | -9/Recycling | Accompanied by 7 allies (01-MTF) 1129 | -9/Recycling | Build established: Commander-Tank 1383 | -9/Recycling | Scanned before Scraplab entrance 1542 | -9/Recycling | Entered Scraplab 1556 | -9/Recycling | Discovered new exit (range 2) 1558 | -9/Recycling | Entered Scraptown 1558 | -9/Scraptown | Accompanied by 3 allies 1800 | -9/Scraptown | Visited UFD Registry 1826 | -9/Scraptown | Registered with UFD as "Cogtorch" 1862 | -9/Scraptown | Build established: Tank 1866 | -9/Scraptown | Heard Great Nut preacher, LISTEN AND RECITE! 1871 | -9/Scraptown | Visited Awakened 1959 | -9/Scraptown | Visited Red Mages 2051 | -9/Scraptown | Visited SPCMW 2093 | -9/Scraptown | Visited Fellowship of the Rings 2288 | -9/Scraptown | Discovered new exit (range 11) 2546 | -9/Scraptown | Visited Junk Cannon Lab 2560 | -9/Scraptown | Found Prototype Special Weapon 2562 | -9/Scraptown | Identified Junk Cannon 2608 | -9/Scraptown | Visited Chapter 10 2672 | -9/Scraptown | Visited A0-MCA Data Center 2682 | -9/Scraptown | Given an A- rating by A0-MCA 2688 | -9/Scraptown | Found A0-MCA's Component Scanner 2983 | -9/Scraptown | Visited Supply Room 3014 | -9/Scraptown | Visited Analyses Database 3190 | -9/Scraptown | Visited Modified Component R&D 3293 | -9/Scraptown | Discovered new exit (range 5) 3506 | -9/Scraptown | Visited Observation Area 3610 | -9/Scraptown | Visited Scrapoid Research Area 3977 | -9/Scraptown | Met Optimus 3977 | -9/Scraptown | Accepted into 0bPrime 4159 | -9/Scraptown | Entered Factory 4159 | -6/Factory | Accompanied by 3 allies 4159 | -6/Factory | Evolved 6 slots: Power x1, Propulsion x2, Utility x2, Weapon x1 4488 | -6/Factory | Build established: Gunner 4694 | -6/Factory | Discovered new exit (range 9) 5041 | -6/Factory | Discovered new exit (range 15) 5065 | -6/Factory | Entered another Factory area 5065 | -5/Factory | Evolved 2 slots: Utility x1, Weapon x1 5464 | -5/Factory | Build established: Scavenger-Executioner 5937 | -5/Factory | Discovered new exit (range 9) 5951 | -5/Factory | Identified exit to Factory 5953 | -5/Factory | Entered another Factory area 5953 | -4/Factory | Evolved 2 slots: Utility x2 6175 | -4/Factory | Build established: Gunner 6579 | -4/Factory | Lost 5 parts (2p1n2w) 6650 | -4/Factory | Lost 4 parts (1p1u2w) 6697 | -4/Factory | Lost 3 parts (1p2n) 6791 | -4/Factory | Lost 6 parts (1p2n3w) 7031 | -4/Factory | System corruption reached 10% 7546 | -4/Factory | Build established: Scavenger-Executioner 7999 | -4/Factory | Spotted B-86 Titan 8105 | -4/Factory | Spotted B-86 Titan 8443 | -4/Factory | Central database locked down 8586 | -4/Factory | Lost 3 parts (1n2w) 8689 | -4/Factory | Core integrity fell below 50% 8752 | -4/Factory | Lost 8 parts (1p2n2u3w) 8953 | -4/Factory | First assault squad dispatched 8954 | -4/Factory | Discovered new exit (range 13) 9005 | -4/Factory | Core integrity fell below 20% 9009 | -4/Factory | Destroyed by G-67 Veteran with Plasma Rifle Last Messages --------------- 08981_ KUBSJ KCUHQWMIRH4TCD MNGV 08985_ M-36 Artificer repairs W-44 Eye Unknown Hover Unit. 08987_ Force Rifle destroyed. 08988_ W-44 Eye sends out distress signal. 08996_ Dropped Adv. ECM Suite. 08996_ M-36 Artificer repairs L-61 Swordsman. 08996_ Adv. Cooling System destroyed. 08997_ System corrupted: Component data lost. 08998_ Slug penetrates L-61 Swordsman. 08999_ M-36 Artificer repairs L-61 Swordsman. 09000_ Slug penetrates Wall. 09004_ Flexi-carbon Leg destroyed. 09004_ Adv. Targeting Computer destroyed. 09004_ Lgt. Antimatter Reactor destroyed. 09004_ Discarded Core Analyzer. 09005_ Dropped Lrg. Storage Unit. 09006_ R-10 Processor collects Adv. Heat Sink. 09006_ ALERT: Suspicious intruders detected, dispatching Cutter reinforcements to area. Map ----- +----------------------------------------------------+ | #???????????????????????????????????????????????? | | #???????????????????????????????????????????????? | | ##???????????????????????????????????????????????? | | ?????????????????????????????????????????????????? | | ?????????????????????????????????????????????????? | | ?????????????????????????????????????????????????? | | ?????????????????????????????????????????????????? | | ???? ????????????????????????????????????????????? | | ??? ??????????H???????????????????????????????? | | ?? ??????????????????????????????????????????? | | ## ???????????????????????????????????????????? | | ????????????????#???????????????????????????? | | ????????????????? ???????????????????????????? | | ?????????????????? ???????????????????????????? | | ?????????????????? ???????????????????????????? | | #??????????????????? "???????????????????????????? | | #????? ??????? ???? ""??????????????????????????? | | #???? ?????? """ ""??????????????????????????? | | #?? ?????? ??????????????????????????? | | #? [ ?????? """ ""??????????????????????????? | | # #??????""" "???????????????????????????? | | + #??????""" "???????????????????????????? | | # #??????? ???????????????????????????? | | #????????????????? ?????????? ???????????????? | | ###################+########## #?????????????? | | @ < #?????????????? | | ! *[!l g #?????????????? | | !^] b*[!] gg #?????????????? | | !]/ Y m ]! #?????????????? | | !] gg | R #?????????????? | | ######/########## #?????????????? | | # %" #??? #?????????????? | | """ / """ " """" ##??? ????????????? | | """ ####### " " """" #???? ???????????? | | """ #?????# """" "#????? ???????????? | | #?????# """ "#?????? ????????????? | | #?????# ##??????? ????????????? | | ####+######### " " #??????????????????????? | | ! # """ !!!#??????????????????????? | | # """" !!!#??????????????????????? | | # """" !!!#??????????????????????? | | # #???????????????!??????? | | "" """" """" #! #??????????????????????? | | "" """" """" ##############??????????????????????? | | "" """" """" #???????????????????????????????????? | | "" """" """??????????????????????????????????????? | | ?? ???????????????????????????????????????? | | ##??????#????????????????????????????????????????? | | | | | +----------------------------------------------------+ Best States ------------- Heat Dissipation 74 Energy Generation 51 Energy Capacity 385 Matter Stores 300 Matter Capacity 300 Sight Range 22 Robot Scan Range 16 Terrain Scan Density 10 ECM Strength 2 Cloak Strength 2 Armor Coverage 225 Evasion (%) 70 Targeting Accuracy 8 Core Analysis 6 Armor Integrity Analysis 40 Recoil Reduction 2 Offensive Hacking 10 Item Schematics ----------------- None Robot Schematics ------------------ None Fabricated ------------ Nothing Repaired ---------- Nothing Studied --------- Neutrino Core | -4/Factory | Hacked Alien Tech Used ----------------- None Achievements -------------- Fancy Inventory Frienemies Into The Breach Challenges ------------ None Game ------ Seed SwarmAuthchipSlamshotty Manual? 0 Play Time 01:08:25 Cumulative 32.5 hours Start 2025.10.29 @ 21:48:07 End 2025.10.30 @ 00:19:49 Sessions 3 Manual Loads 0 Difficulty Rogue Special Mode None Game No. 96 Rogue 96 Adventurer 0 Explorer 0 Win Type - Total 0 Types 0/0/0/0/0/0/0/0/0/0 Lore% 22 Gallery% 26 Achievement% 21 Wizard Run 0 Options --------- Layout 1 ASCII 0 Keyboard 0 Movement Mouse Keybinds 0 Fullscreen 2 Font 24/Smallcaps Map View 50x35 Zoom Use 0% Tactical HUD 1 Map Filters NONE Filters NONE Steam 1 RUN: 0a1930d3-2d28-4963-a3f4-d8b7a0cf5535